Cogmind - Beta 16 @@@ ROGUE MODE // 2025.10.25 @ 06:34:20 Player: Wyvric Result: Destroyed by G-47 Trooper with Particle Gun Performance ------------- Evolutions (2) 1000 Regions Visited (3) 600 Robots Destroyed (20) 100 Value Destroyed (485) 485 Prototype IDs (0) 0 Alien Tech Used (0) 0 Bonus (0) 0 TOTAL SCORE: 2185 Bonus ------- None Cogmind --------- Core Integrity 0/550 Matter 287/300 Energy 100/100 System Corruption 0% Temperature Cool (10) Movement Core (50) Location -8/Materials Parts ------- > --- POWER (1) -------- (None) > --- PROPULSION (4) --- (None) > --- UTILITY (4) ------ (None) > --- WEAPON (2) ------- (None) > --- INVENTORY (5) ---- Nuclear Core Light Treads Faulty Improved Medium Laser Heavy Assault Rifle Shotgun Peak State ------------ > --- POWER ------------ (None) > --- PROPULSION ------- Light Treads Light Treads Wheel > --- UTILITY ---------- Huge Storage Unit Improved Light Armor Plating Improved Light Armor Plating > --- WEAPON ----------- Beam Rifle Shotgun > --- INVENTORY -------- Light Ion Engine Nuclear Core Nuclear Core Light Treads Light Treads Light Treads Wheel Small Storage Unit Large Storage Unit Beam Rifle Improved Medium Laser Light Assault Rifle Light Assault Rifle Heavy Assault Rifle Shotgun Shotgun Shotgun Grenade Launcher Grenade Launcher [Rating: 17] Favorites ----------- Power Light Ion Engine Engine Light Ion Engine Propulsion Aluminum Leg Treads Light Treads Leg Aluminum Leg Wheel Wheel Utility Huge Storage Unit Storage Huge Storage Unit Protection Improved Light Armor Plating Weapon Shotgun Energy Gun Beam Rifle Ballistic Gun Shotgun Launcher Grenade Launcher Build | -11 -10 -9 -8 ------- Run | Yrd Mat Mat Mat Slots Evolved 4 | . . 2 2 Power . | . . . . Propulsion 2 | . . 1 1 Utility 2 | . . 1 1 Weapon . | . . . . Parts Attached 19 | 5 4 10 . Power 1 | 1 . . . Engine 1 | 1 . . . Core . | . . . . Reactor . | . . . . Propulsion 6 | 3 1 2 . Treads 2 | . . 2 . Leg 3 | 2 1 . . Wheel 1 | 1 . . . Hover . | . . . . Flight . | . . . . Utility 5 | 1 . 4 . Device . | . . . . Storage 2 | 1 . 1 . Processor . | . . . . Hackware . | . . . . Protection 3 | . . 3 . Artifact . | . . . . Weapon 7 | . 3 4 . Energy Gun 3 | . 2 1 . Energy Cannon . | . . . . Ballistic Gun 3 | . 1 2 . Ballistic Cannon . | . . . . Launcher 1 | . . 1 . Special Weapon . | . . . . Impact Weapon . | . . . . Slashing Weapon . | . . . . Piercing Weapon . | . . . . Special Melee Weapon . | . . . . Unidentified Prototypes . | . . . . Parts Lost 7 | . 1 5 1 Power 1 | . . 1 . Propulsion 3 | . . 2 1 Utility 1 | . . 1 . Weapon 2 | . 1 1 . Highest Loss Streak 3 | . 1 3 1 To Critical Strikes . | . . . . Average Backups 12 | 4 7 14 17 Power 1 | . 1 1 3 Propulsion 3 | 2 4 3 3 Utility 1 | . . 1 2 Weapon 5 | 1 . 7 8 Tool/Special . | . . . . Unused Backups 20 | . 1 . 19 Power 5 | . 1 . 4 Propulsion 4 | . . . 4 Utility 3 | . . . 3 Weapon 8 | . . . 8 Tool/Special . | . . . . Average Slot Usage (%) 73 | . 81 73 51 Engine 6 | . 14 4 . Treads 9 | . . 12 13 Leg 12 | . 28 8 . Wheel 6 | . . 8 4 Storage 11 | . 14 11 6 Protection 6 | . . 7 13 Energy Gun 7 | . 14 5 6 Ballistic Gun 14 | . 10 15 6 Peak Build Rating 17 | 4 6 17 17 Average Rating 9 | 3 5 10 10 On Entrance 6 | . 4 6 17 Avg Prop Armor Cover (%) 17 | 9 . 17 14 Naked Turns 26 | . . . 26 Heaviest Build 96 | 8 10 96 92 Greatest Support 20 | 20 20 20 10 Greatest Overweight (x) 30 | . . 9 30 Average Overweight (x) 3 | . . 5 5 Largest Inventory Capacity 25 | 8 8 25 25 Average Capacity 17 | 7 8 21 17 Most Carried 22 | 8 8 22 22 Average Carried 12 | 4 7 14 15 Final Capacity 25 | 8 8 25 5 Final Carried 22 | 8 8 22 5 Class Distribution -------------------- 100% | Mutant Dominant Class ---------------- Mutant | -10/Materials Mutant | -9/Materials Mutant | -8/Materials Resources | -11 -10 -9 -8 ----------- Run | Yrd Mat Mat Mat Matter Collected 497 | 218 69 210 . Remotely . | . . . . Salvage Created 558 | . 205 353 . Parts 49 | . 13 36 . Haulers Intercepted . | . . . . Recyclers Shooed . | . . . . Parts Field Recycled . | . . . . Retrieved Matter . | . . . . Parts Self-Destructed . | . . . . Prevented . | . . . . Parts Restored . | . . . . Kills | -11 -10 -9 -8 ------- Run | Yrd Mat Mat Mat Combat Hostiles Destroyed 17 | . 7 10 . Guns 13 | . 7 6 . AOE 4 | . . 4 . Classes Destroyed 5 | . 2 3 . Worker 2 | . . 2 . Watcher 1 | . . 1 . Swarmer 7 | . 3 4 . Grunt 6 | . 4 2 . Sentry 4 | . . 4 . Best Kill Streak 7 | . 6 7 . Combat Bots Only 6 | . 6 6 . Max Kills in Single Turn 3 | . 1 3 . Gunslinging . | . . . . Exploded 3 | . . 3 . Melee . | . . . . Uniques/NPCs Destroyed . | . . . . Combat | -11 -10 -9 -8 -------- Run | Yrd Mat Mat Mat Hostile Shots Fired 173 | . 50 57 66 Missed 47 | . 15 13 19 Hits 126 | . 35 44 47 Projectile 126 | . 35 44 47 Critical Strikes 6 | . 2 1 3 Damage Taken 1745 | . 412 605 728 Core 803 | . 134 114 555 Absorbed by Shields . | . . . . Core Remaining (%) 72 | 100 46 71 . Volleys Fired 39 | . 19 20 . Largest 2 | . 2 2 . Hottest 80 | . 80 79 . Shots Fired 74 | . 38 36 . Gun 71 | . 38 33 . Cannon . | . . . . Launcher 3 | . . 3 . Special . | . . . . Kinetic 44 | . 12 32 . Thermal 27 | . 26 1 . Explosive 3 | . . 3 . Electromagnetic . | . . . . Robot Hit Streak 19 | . 19 13 . Robot Miss Streak 6 | . 2 6 . Penetration Max . | . . . . Secondary Targets 2 | . 2 . . Max Gunslinging Chain 1 | . 1 . . Shots Hit Robots 56 | . 31 25 . Core Hits 37 | . 14 23 . Critical Kills . | . . . . Critical Parts Destroyed . | . . . . Critical Strikes . | . . . . Melee Attacks . | . . . . Impact . | . . . . Slashing . | . . . . Piercing . | . . . . Sneak Attacks . | . . . . Combat Hostiles . | . . . . Follow-up Attacks . | . . . . Damage Inflicted 1039 | . 337 702 . Guns 689 | . 337 352 . Cannons . | . . . . Explosions 310 | . . 310 . Melee . | . . . . Ramming 40 | . . 40 . Kinetic 421 | . 69 352 . Thermal 268 | . 268 . . Explosive 310 | . . 310 . Electromagnetic . | . . . . Impact . | . . . . Slashing . | . . . . Piercing . | . . . . Highest Corruption 2 | . . 2 . Average Corruption 2 | . . 2 . Corruption Purged . | . . . . Corruption Blocked . | . . . . Effects 5 | . . 5 . Message Errors 3 | . . 3 . Energy Discharges 1 | . . 1 . Data Loss (minor) 1 | . . 1 . Overload Shots . | . . . . Overflow Damage 6 | . . 6 . Projectiles . | . . . . Explosions 6 | . . 6 . Melee . | . . . . Knockbacks . | . . . . Impact . | . . . . Kinetic . | . . . . Secondary . | . . . . Self-Inflicted Damage 63 | . . 63 . Shots 2 | . . 2 . Rammed 3 | . . 3 . Targets Rammed 3 | . . 3 . Kicked . | . . . . Crushed . | . . . . Highest Temperature 321 | . 321 11 23 Average Temperature 90 | . 122 4 8 Received Heat Transfer 801 | . 237 195 369 Siege Activations . | . . . . Martial Activations . | . . . . Shielding Activations . | . . . . Robots Disrupted . | . . . . Combat Hostiles . | . . . . Robots Corrupted . | . . . . Combat Hostiles . | . . . . Parts Fried . | . . . . Impact Corruptions . | . . . . Robots Melted . | . . . . Combat Hostiles . | . . . . Parts Melted . | . . . . Heat Transferred 600 | . 600 . . Parts Sabotaged . | . . . . Parts Stolen . | . . . . Parts Stripped . | . . . . Power Chain Reactions . | . . . . Alert | -11 -10 -9 -8 ------- Run | Yrd Mat Mat Mat Maximum Alert Level . | . . . . Low Security (%) 100 | 100 100 100 100 Level 1 . | . . . . Level 2 . | . . . . Level 3 . | . . . . Level 4 . | . . . . Level 5 . | . . . . High Security . | . . . . Max Security . | . . . . Peak Influence 141 | . 110 141 2 Initial 27 | . . 27 2 Average 50 | . 74 54 . Influence Increases 488 | . 165 323 . Destroy 0b10 Robot/C 340 | . 140 200 . Destroy 0b10 Robot/NC 15 | . . 15 . Destroy Leader 92 | . 20 72 . Successful Hack 5 | . 5 . . Destroy Structure 21 | . . 21 . Lose Combat Pursuer 15 | . . 15 . Influence Decreases 488 | . 100 381 7 Entered New Map 43 | . . 38 5 Time Decay 385 | . 90 293 2 Lost Part 60 | . 10 50 . Squads Dispatched 4 | . . 3 1 Investigation 1 | . . 1 . Extermination . | . . . . Reinforcement 3 | . . 2 1 Assault . | . . . . Garrison . | . . . . Intercept . | . . . . Searches Triggered . | . . . . Construction Impeded . | . . . . Haulers Reinforced . | . . . . Active Scanning Responses . | . . . . Cargo Convoy Interrupts . | . . . . Stealth | -11 -10 -9 -8 --------- Run | Yrd Mat Mat Mat Distress Signals 6 | . 1 2 3 Communications Jammed . | . . . . Distress Signals . | . . . . Times Spotted 35 | . 10 17 8 Peak Tracking Total 9 | . 5 7 9 Tactical Retreats 1 | . . 1 . Traps | -11 -10 -9 -8 ------- Run | Yrd Mat Mat Mat Traps Triggered 2 | . . 2 . Indirectly . | . . . . Trap Hack Attempts . | . . . . Triggered . | . . . . Disarmed . | . . . . Reprogrammed . | . . . . Reused . | . . . . Traps Extracted . | . . . . Installed . | . . . . Triggered . | . . . . Machines | -11 -10 -9 -8 ---------- Run | Yrd Mat Mat Mat Machines Disabled . | . . . . Max in Single Turn . | . . . . Machines Repaired . | . . . . Machines Dismantled . | . . . . Machines Sabotaged . | . . . . Overloaded Fab Kills . | . . . . Hacking | -11 -10 -9 -8 --------- Run | Yrd Mat Mat Mat Machines Accessed 2 | . 1 1 . Terminals 2 | . 1 1 . Fabricators . | . . . . Repair Stations . | . . . . Recycling Units . | . . . . Scanalyzers . | . . . . Garrison Access . | . . . . Total Hacks 4 | . 2 2 . Successful 2 | . 1 1 . Failed 2 | . 1 1 . Catastrophic . | . . . . Database Lockouts . | . . . . Manual . | . . . . Terminals 4 | . 2 2 . Fabricators . | . . . . Repair Stations . | . . . . Recycling Units . | . . . . Scanalyzers . | . . . . Garrison Access . | . . . . Terminal Hacks 2 | . 1 1 . Zone Layout 2 | . 1 1 . Fabricator Hacks . | . . . . Repair Station Hacks . | . . . . Recycling Unit Hacks . | . . . . Scanalyzer . | . . . . Garrison Access Hacks . | . . . . Unauthorized Hacks . | . . . . Terminals . | . . . . Fabricators . | . . . . Repair Stations . | . . . . Recycling Units . | . . . . Scanalyzers . | . . . . Garrison Access . | . . . . Data Cores Recovered . | . . . . Used . | . . . . Hacking Detections 2 | . 1 1 . Full Trace Events . | . . . . Feedback Events . | . . . . Feedback Blocked . | . . . . Robot Schematics Acquired . | . . . . Robots Built . | . . . . Authchips . | . . . . Time . | . . . . Total Robot Build Rating . | . . . . Part Schematics Acquired . | . . . . Parts Built . | . . . . Authchips . | . . . . Time . | . . . . Total Part Build Rating . | . . . . Part Studies Acquired . | . . . . Parts Repaired . | . . . . Time . | . . . . Parts Recycled . | . . . . Recycled Matter . | . . . . Retrieved Matter . | . . . . Retrieved Components . | . . . . Parts Scanalyzed . | . . . . Part Schematics Acquired . | . . . . Parts Damaged . | . . . . Bothacking | -11 -10 -9 -8 ------------ Run | Yrd Mat Mat Mat Used RIF Installer . | . . . . Robots Hacked . | . . . . Non-combat . | . . . . Combat . | . . . . Robot Hacks Applied . | . . . . Relay Couplers Released . | . . . . Fabnet Peak Effective % . | . . . . Robots Rewired . | . . . . Allies Hacked . | . . . . Hacks Repelled . | . . . . Allies | -11 -10 -9 -8 -------- Run | Yrd Mat Mat Mat Total Allies . | . . . . Largest Group . | . . . . Highest-Rated Group . | . . . . Highest-Rated Ally . | . . . . Total Orders . | . . . . Ally Attacks . | . . . . Total Damage . | . . . . Kills . | . . . . Allies Corrupted . | . . . . Allies Melted . | . . . . Intel | -11 -10 -9 -8 ------- Run | Yrd Mat Mat Mat Active Infowar (turns) . | . . . . Robot Analysis Total . | . . . . Derelict Logs Recovered . | . . . . Drone Launches . | . . . . Drone Recoveries . | . . . . Exploration | -11 -10 -9 -8 ------------- Run | Yrd Mat Mat Mat Turns Passed 1086 | 84 207 725 70 Spaces Moved 550 | 60 119 342 29 Core 17 | 1 . . 16 Treads 1 | . . 1 . Legs 287 | 54 119 114 . Wheels 245 | 5 . 227 13 Hover . | . . . . Flight . | . . . . Fastest Speed 50 | 50 120 120 50 Average Speed 162 | 115 120 185 175 Slowest Speed 1550 | 120 120 480 1550 Overloaded Moves . | . . . . Propulsion Burnouts . | . . . . Robots Hopped . | . . . . Potential Cave-ins . | . . . . Cave-ins Triggered . | . . . . Exploration Rate (%) 19 | 4 27 40 8 Regions Visited 3 Branch Regions . Pre-discovered Areas . | . . . . Known Exits Taken . | . . . . Unknown Exits Taken 3 | 1 1 1 . Scrap Searched . | . . . . Spaces Dug . | . . . . Terrain Destroyed 21 | . . 21 . Melee . | . . . . Projectile . | . . . . AOE 21 | . . 21 . Terrain Rammed . | . . . . Walls Destroyed . | . . . . Machines Disabled . | . . . . Actions | -11 -10 -9 -8 --------- Run | Yrd Mat Mat Mat Total 660 | 72 148 392 48 Wait 19 | . . . 19 Move 547 | 59 118 341 29 Hop . | . . . . Pick Up 27 | 7 5 15 . Fast Attach 13 | 5 . 8 . Attach 4 | . 3 1 . Detach 1 | 1 . . . Swap 4 | . 1 3 . Drop 3 | . 2 1 . Fire 39 | . 19 20 . Melee . | . . . . Ram 3 | . . 3 . Kick . | . . . . Crush . | . . . . Escape Stasis . | . . . . Rewire . | . . . . Trap . | . . . . Miscellaneous . | . . . . Route ------- -11/Scrapyard -10/Materials -9/Materials (discovered 2 exits: *Mat / [*Min]) -8/Materials History --------- Turn | Location | Event 26 | -11/Scrapyard | Discovered new exit (range 14) 85 | -11/Scrapyard | Entered Materials 182 | -10/Materials | Core integrity fell below 50% 285 | -10/Materials | Discovered new exit (range 7) 292 | -10/Materials | Entered another Materials area 292 | -9/Materials | Evolved 2 slots: Propulsion x1, Utility x1 317 | -9/Materials | Build established: Mutant 622 | -9/Materials | Lost 3 parts (1p1n1u) 696 | -9/Materials | Discovered new exit (range 8) 1004 | -9/Materials | Discovered new exit (range 6) 1017 | -9/Materials | Entered another Materials area 1017 | -8/Materials | Evolved 2 slots: Propulsion x1, Utility x1 1061 | -8/Materials | Released all parts (7) 1080 | -8/Materials | Core integrity fell below 50% 1084 | -8/Materials | Core integrity fell below 20% 1087 | -8/Materials | Destroyed by G-47 Trooper with Particle Gun Last Messages --------------- 01061_ Released Lgt. Treads. 01061_ Released Shotgun. 01061_ Released Huge Storage Unit. 01061_ Released Lgt. Treads. 01061_ Released Beam Rifle. 01061_ Released Imp. Light Armor Plating. 01062_ Connecting with Garrison Access... 01062_ Current location identified: Materials 01067_ R-06 Scavenger collects Grenade Launcher. 01068_ ALERT: Hostiles spotted, dispatching reinforcements to Terminal M008. 01071_ R-06 Scavenger collects Lgt. Treads. 01071_ Critical hit (Burn: +37). 01072_ K-01 Serf collects debris. 01074_ R-06 Scavenger collects Imp. Light Armor Plating. 01077_ R-06 Scavenger collects Nuclear Core. 01077_ K-01 Serf collects debris. 01085_ Critical hit (Burn: +37). 01085_ K-01 Serf collects debris. Map ----- +----------------------------------------------------+ | ?????????????????????????????????????????????????? | | ???????????????#####?????????????????????????????? | | ????????######?# #?????????????????????????????? | | ????????# """ # #?????????????? #?????????????? | | ????????# "R" # #????????????? #?????????????? | | ????????# " " + ############## #?????????????? | | ????????# # #?????????????? | | ????????# # * #?????????????? | | ????????# ! ?# ==[![ #?????????????? | | ????????######?# ######[[[[! ### #?????????? | | ???????????????# #????#=!!][ ???????? | | ???????????????# #?####!=!t ???????? | | ???????????????# #?#""" #####+####+##????????? | | ??????????????? #?#"G a# #?????????? | | ?????????????? #?#"""g + #?????????? | | ????????????? #?#### g # #?????????? | | ????????????##### ##????# Y# "T" ??????????? | | ????????????????# #?????# #? ""????????????? | | ????????????????# #?????# #? ????????????? | | ????????????????# ??????# #??#######???????????? | | ????????????????? ??????# #????????????????????? | | ????????????????? ??????# #????????????????????? | | ????????????????? ??????# #????????????????????? | | ???????????????????????## ##???????????????????? | | ????????????????# ######g Y #???????????????????? | | ????????????????# @ #???????????????????? | | ????????????????# +???????????????????? | | ????????????????# a #???????????????????? | | ????????????????# w#### #???????????????????? | | ????????????????# ????## ##???????????????????? | | ????????????????# ??????# #????????????????????? | | ????????????????+???????# #????????????????????? | | ????????????????????????#k +????????????????????? | | ????????????????????????# #????????????????????? | | ????????????????????????? #????????????????????? | | ????????????????????????? #????????????????????? | | ????????????????????????? #????????????????????? | | ????????????????????????? +????????????????????? | | ????????????????????????? #????????????????????? | | ????????????????????????? w#????????????????????? | | ????????????????????????? ?????????????????????? | | ?????????????????????????????????????????????????? | | ?????????????????????????????????????????????????? | | ?????????????????????????????????????????????????? | | ?????????????????????????????????????????????????? | | ?????????????????????????????????????????????????? | | ?????????????????????????????????????????????????? | | ?????????????????????????????????????????????????? | | ?????????????????????????????????????????????????? | | ?????????????????????????????????????????????????? | +----------------------------------------------------+ Best States ------------- Heat Dissipation 31 Energy Generation 10 Energy Capacity 125 Matter Stores 300 Matter Capacity 300 Sight Range 16 Terrain Scan Density 10 Armor Coverage 300 Evasion (%) 55 Recoil Reduction 2 Item Schematics ----------------- None Robot Schematics ------------------ None Fabricated ------------ Nothing Repaired ---------- Nothing Studied --------- None Alien Tech Used ----------------- None Achievements -------------- None Challenges ------------ None Game ------ Seed TiamatSingularityWartreads Manual? 0 Play Time 00:05:53 Cumulative 754.2 hours Start 2025.10.25 @ 06:29:00 End 2025.10.25 @ 06:34:20 Sessions 1 Manual Loads 0 Difficulty Rogue Special Mode None Game No. 171 Rogue 171 Adventurer 0 Explorer 0 Win Type - Total 45 Types 13/7/9/2/1/1/8/2/1/1 Lore% 78 Gallery% 85 Achievement% 54 Wizard Run 0 Options --------- Layout 1 ASCII 0 Keyboard 0 Movement Mouse Keybinds 0 Fullscreen 1 Font 24/Smallcaps Map View 50x35 Zoom Use 0% Tactical HUD 1 Map Filters NONE Filters NONE Steam 1 RUN: 1e933af9-2ef3-4c30-bf5e-aa4b8f010461